Workbook

Sheet Sheet2
B1: Tørkeanlegg:
B2: Lufttrykk | C2: Pa | D2: 101350
B3: Luftmengde | C3: m3/h | D3: 20720
C4: m3/s | D4: =D3/3600 -> 5.755555556
A5: Inngående luftmengde
B6: Temperatur | C6: oC | D6: 22
B7: Relativ fuktighet | C7: % | D7: 50
B8: Tetthet | C8: kg/m3 | D8: =1/HX_Vtoerr_trh(D2,D6,D7) -> 1.142104648
B9: Entalpi | C9: J/kg | D9: =HX_H_trh(D2,D6,D7) -> 44615.18639
B10: Absolutt fuktighet | C10: kg/kg | D10: =HX_X_trh(D2,D6,D7) -> 0.0084983008
B11: Temperatur ut | C11: oC | D11: 13.3
B12: Duggpunkt | C12: oC | D12: =HX_Tdugg_trh(D2,D6,D7) -> 11.10927409
A13: Varmeveksler
A14: Effektivitet | C14: % | D14: 0.75
A15: Kjøling ned til duggpunkt
B16: Entalpi | C16: J/kg | D16: =HX_H_trh(D2,D12,D17) -> 33052.79467
B17: Relativ fuktighet | C17: % | D17: 100
B18: Ytelse | C18: W | D18: =D4*D8*(D9-D16) -> 76004.7663
A23: Fordamper
B24: Fordampningstemperature | C24: oC | D24: 0
B25: Overflatetemperatur | C25: oC | D25: =D24+2 -> 2
B26: Ralativ fuktighet | C26: % | D26: 100
B27: Entalpi ved overflate | C27: J/kg | D27: =HX_H_trh(D2,D25,D26) -> 13387.18196
B28: Absolutt fuktighet | C28: kg/kg | D28: =HX_X_trh(D2,D25,D26) -> 0.004509148433
B29: Ytelse | C29: W | D29: =D4*D8*(D16-D27) -> 129270.858
B30: Utfelt fuktighet | C30: kg/s | D30: =D4*D8*(D10-D28) -> 0.02622248067
C31: kg/h | D31: =D30*3600 -> 94.40093041

Sheet Ark1

Sheet Kuldeanlegg
B2: Kuldemedium | D2: R717 | F2: R404a | G2: R404a | H2: R404a | I2: R404a
B4: Kondenseringstemperatur | C4: oC | D4: 40 | F4: 30 | G4: 25 | H4: 20 | I4: 15
B5: Kondenseringstrykk | C5: Pa | D5: =R_PsatgasT(D2,D4) -> 1554576.691 | F5: =R_PsatgasT(F2,F4) -> 1416011.894 | G5: =R_PsatgasT(G2,G4) -> 1243026.457 | H5: =R_PsatgasT(H2,H4) -> 1086414.12 | I5: =R_PsatgasT(I2,I4) -> 945094.7453
B6: Fordampningstemperatur | C6: oC | D6: -10 | F6: -10 | G6: -10 | H6: -10 | I6: -10
B7: Fordampningstrykk | C7: Pa | D7: =R_PsatgasT(D2,D6) -> 290768.3987 | F7: =R_PsatgasT(F2,F6) -> 433298.6233 | G7: =R_PsatgasT(G2,G6) -> 433298.6233 | H7: =R_PsatgasT(H2,H6) -> 433298.6233 | I7: =R_PsatgasT(I2,I6) -> 433298.6233
B8: Trykkforhold | C8: - | D8: =D5/D7 -> 5.346443075 | F8: =F5/F7 -> 3.267981521 | G8: =G5/G7 -> 2.868752381 | H8: =H5/H7 -> 2.507310344 | I8: =I5/I7 -> 2.181162585
B9: Volumetrisk virkningsgrad | C9: - | D9: 0.7 | F9: 0.7 | G9: 0.7 | H9: 0.7 | I9: 0.7
B10: Isentropisk virkningsgrad | C10: - | D10: 0.7 | F10: 0.7 | G10: 0.7 | H10: 0.7 | I10: 0.7
A11: Punkt
A12: 1 | B12: Overhetning | C12: oC | D12: 5 | F12: 5 | G12: 5 | H12: 5 | I12: 5
B13: Spesifikk entalpi | C13: J/kg | D13: =R_HgasTP(D2,(D6+D12),D7) -> 1624603.951 | F13: =R_HgasTP(F2,(F6+F12),F7) -> 366692.3323 | G13: =R_HgasTP(G2,(G6+G12),G7) -> 366692.3323 | H13: =R_HgasTP(H2,(H6+H12),H7) -> 366692.3323 | I13: =R_HgasTP(I2,(I6+I12),I7) -> 366692.3323
B14: Spesifikk entropi | C14: J/kgK | D14: =R_SgasTP(D2,(D6+D12),D7) -> 6365.396498 | F14: =R_SgasTP(F2,(F6+F12),F7) -> 1635.697733 | G14: =R_SgasTP(G2,(G6+G12),G7) -> 1635.697733 | H14: =R_SgasTP(H2,(H6+H12),H7) -> 1635.697733 | I14: =R_SgasTP(I2,(I6+I12),I7) -> 1635.697733
B15: Spesifikk volum | C15: m3/kg | D15: =R_VgasTP(D2,(D6+D12),D7) -> 0.4282345573 | F15: =R_VgasTP(F2,(F6+F12),F7) -> 0.04737225068 | G15: =R_VgasTP(G2,(G6+G12),G7) -> 0.04737225068 | H15: =R_VgasTP(H2,(H6+H12),H7) -> 0.04737225068 | I15: =R_VgasTP(I2,(I6+I12),I7) -> 0.04737225068
A16: 2s | B16: Spesifikk entalpi | C16: J/kg | D16: =R_HgasSP(D2,D17,D5) -> 1877929.77 | F16: =R_HgasSP(F2,F17,F5) -> 391162.347 | G16: =R_HgasSP(G2,G17,G5) -> 388499.5466 | H16: =R_HgasSP(H2,H17,H5) -> 385727.6121 | I16: =R_HgasSP(I2,I17,I5) -> 382844.426
B17: Spesifikk entropi | C17: J/kgK | D17: =D14 -> 6365.396498 | F17: =F14 -> 1635.697733 | G17: =G14 -> 1635.697733 | H17: =H14 -> 1635.697733 | I17: =I14 -> 1635.697733 | M17: p | N17: h | O17: t
B18: Temperatur | C18: oC | D18: =R_TgasHP(D2,D16,D5) -> 119.436342 | F18: =R_TgasHP(F2,F16,F5) -> 38.50396838 | G18: =R_TgasHP(G2,G16,G5) -> 33.03958865 | H18: =R_TgasHP(H2,H16,H5) -> 27.61794471 | I18: =R_TgasHP(I2,I16,I5) -> 22.22170698 | L18: 1 | M18: =D7 -> 290768.3987 | N18: =D13 -> 1624603.951 | O18: =D6+D12 -> -5
A19: 2 | B19: Spesifikk entalpi | C19: J/kg | D19: =D13+(D16-D13)/D10 -> 1986497.978 | F19: =F13+(F16-F13)/F10 -> 401649.4961 | G19: =G13+(G16-G13)/G10 -> 397845.4956 | H19: =H13+(H16-H13)/H10 -> 393885.5891 | I19: =I13+(I16-I13)/I10 -> 389766.7518 | L19: 2 | M19: =D5 -> 1554576.691 | N19: =D19 -> 1986497.978 | O19: =D20 -> 162.0341443
B20: Temperatur | C20: oC | D20: =R_TgasHP(D2,D19,D5) -> 162.0341443 | F20: =R_TgasHP(F2,F19,F5) -> 48.43944898 | G20: =R_TgasHP(G2,G19,G5) -> 42.17167828 | H20: =R_TgasHP(H2,H19,H5) -> 35.82233011 | I20: =R_TgasHP(I2,I19,I5) -> 29.37464174 | L20: 3 | M20: =M19 -> 1554576.691 | N20: =D22 -> 537639.892 | O20: =D4-D21 -> 37
A21: 3 | B21: Underkjøling i kondensator | C21: oC | D21: 3 | F21: 3 | G21: 3 | H21: 3 | I21: 3 | L21: 4 | M21: =M18 -> 290768.3987 | N21: =N20 -> 537639.892 | O21: =D6 -> -10
B22: Spesifikk entalpi | C22: J/kg | D22: =R_HsatliqT(D2,(D4-D21)) -> 537639.892 | F22: =R_HsatliqT(F2,(F4-F21)) -> 241022.1271 | G22: =R_HsatliqT(G2,(G4-G21)) -> 232904.3189 | H22: =R_HsatliqT(H2,(H4-H21)) -> 225040.6448 | I22: =R_HsatliqT(I2,(I4-I21)) -> 217402.2525 | L22: 1 | M22: =M18 -> 290768.3987 | N22: =N18 -> 1624603.951 | O22: =O18 -> -5
A23: 4 | B23: Spesifikk entalpi | C23: J/kg | D23: =D22 -> 537639.892 | F23: =F22 -> 241022.1271 | G23: =G22 -> 232904.3189 | H23: =H22 -> 225040.6448 | I23: =I22 -> 217402.2525
B25: Spesifikk kuldeytelse | C25: J/kg | D25: =(D13-D23) -> 1086964.059 | F25: =(F13-F23) -> 125670.2053 | G25: =(G13-G23) -> 133788.0134 | H25: =(H13-H23) -> 141651.6875 | I25: =(I13-I23) -> 149290.0798 | N25: R717
B26: Spesifikt kraftforbruk | C26: J/kg | D26: =(D19-D13) -> 361894.0268 | F26: =(F19-F13) -> 34957.16377 | G26: =(G19-G13) -> 31153.1633 | H26: =(H19-H13) -> 27193.25679 | I26: =(I19-I13) -> 23074.41949 | N26: 0
B27: Spesifik kondensatorytelse | C27: J/kg | D27: =(D19-D22) -> 1448858.086 | F27: =(F19-F22) -> 160627.369 | G27: =(G19-G22) -> 164941.1767 | H27: =(H19-H22) -> 168844.9443 | I27: =(I19-I22) -> 172364.4993
B28: COP | C28: - | D28: =D25/D26 -> 3.003542415 | F28: =F25/F26 -> 3.594977158 | G28: =G25/G26 -> 4.294524191 | H28: =H25/H26 -> 5.209074023 | I28: =I25/I26 -> 6.469938705 | N28: =R_PsatgasT(N25,N26) -> 429351.6456
N29: =R_CPliqTP("R717",-20,1000000) -> 4541.302792
B30: Slagvolum | C30: m3/h | D30: 250 | F30: 250 | G30: 250 | H30: 250 | I30: 250
B31: Massestrøm | C31: kg/s | D31: =(D30/3600)*D9/D15 -> 0.1135151526 | F31: =(F30/3600)*F9/F15 -> 1.026151606 | G31: =(G30/3600)*G9/G15 -> 1.026151606 | H31: =(H30/3600)*H9/H15 -> 1.026151606 | I31: =(I30/3600)*I9/I15 -> 1.026151606
B33: Kuldeytelse | C33: kW | D33: =D31*D25/1000 -> 123.3868911 | F33: =F31*F25/1000 -> 128.956683 | G33: =G31*G25/1000 -> 137.2867848 | H33: =H31*H25/1000 -> 145.3561067 | I33: =I31*I25/1000 -> 153.1942551 | N33: =
B34: Kfraftforbruk | C34: kW | D34: =D31*D26/1000 -> 41.08045567 | F34: =F31*F26/1000 -> 35.87134974 | G34: =G31*G26/1000 -> 31.96786855 | H34: =H31*H26/1000 -> 27.90440412 | I34: =I31*I26/1000 -> 23.67785262
B35: Kondensatorytelse | C35: kW | D35: =D31*D27/1000 -> 164.4673467 | F35: =F31*F27/1000 -> 164.8280327 | G35: =G31*G27/1000 -> 169.2546534 | H35: =H31*H27/1000 -> 173.2605108 | I35: =I31*I27/1000 -> 176.8721077

Sheet Sheet1
D2: R717 | E2: R717 | F2: R717 | G2: R717
F3: kokepunkt
B4: Kritisk punkt | D4: =R_Tcrit(D2) -> 132.253
D5: =D4-0.1 -> 132.153 | E5: =R_PsatliqT($E$2,D5) -> 11313569.45 | F5: =R_HsatliqT($F$2,D5) -> 1251425.509 | G5: =R_HsatgasT($G$2,D5) -> 1308757.438
D6: =D5-0.5 -> 131.653 | E6: =R_PsatliqT($E$2,D6) -> 11214226.61 | F6: 1211345.353 | G6: =R_HsatgasT($G$2,D6) -> 1346569.891
D7: =D6-1 -> 130.653 | E7: 11017598.82 | F7: 1174437.727 | G7: =R_HsatgasT($G$2,D7) -> 1382903.33
D8: =D4-2 -> 130.253 | E8: 10939826.66 | F8: 1164169.974 | G8: 1393239.987
D9: =D8-4 -> 126.253 | E9: 10189613.79 | F9: 1098198.153 | G9: 1457644.492
D10: =D9-10 -> 116.253 | E10: 8506553.882 | F10: 999833.8162 | G10: 1535647.562
D11: =D10-10 -> 106.253 | E11: 7056500.716 | F11: 924698.9187 | G11: 1579242.679
D12: 96.253 | E12: 5806170.114 | F12: 858767.9362 | G12: 1607772.424
D13: 86.253 | E13: 4731759.165 | F13: 798151.8652 | G13: 1627130.173
D14: 76.253 | E14: 3814027.59 | F14: 741112.5437 | G14: 1640057.827
D15: 66.253 | E15: 3036350.445 | F15: 686691.3239 | G15: 1648084.487
D16: 56.253 | E16: 2383750.048 | F16: 634287.2679 | G16: 1652154.638
D17: 46.253 | E17: 1842382.08 | F17: 583486.4545 | G17: 1652896.48
D18: 36.253 | E18: 1399245.147 | F18: 533980.8916 | G18: 1650754.021
D19: 26.253 | E19: 1042018.014 | F19: 485526.7687 | G19: 1646067.914
D20: 16.253 | E20: 759020.7854 | F20: 437923.5864 | G20: 1639123.107
D21: 6.253 | E21: 539248.6599 | F21: 391006.7126 | G21: 1630166.684
D22: -3.747 | E22: 372426.7669 | F22: 344649.7893 | G22: 1619417.837
D23: =D22-10 -> -13.747 | E23: 249073.4336 | F23: 298773.4911 | G23: 1607070.161
D24: -23.747 | E24: 160569.0485 | F24: 253352.9212 | G24: 1593315.758
D25: -33.747 | E25: 99249.53536 | F25: 208404.1008 | G25: 1578435.875

Sheet Sheet3
A1: EXAMPLE
A3: Mollier diagram | I3: R717
F4: Condenser temp | I4: 30
A5: Temperature | B5: 20 | F5: Evapratpor temperatur | I5: -10
A6: Reletive humidity | B6: 50 | F6: Cond pressur | I6: =R_PsatgasT(I3,I4) -> 1166562.209
A7: Absolute humidity | B7: =HX_X_trh(101350,B5,B6) -> 0.007503837058 | F7: Evap pressure | I7: =R_PsatgasT(I3,I5) -> 290768.3987
A8: Dew point | B8: =HX_Tdugg_trh(101350,B5,B6) -> 9.271777832 | F8: Pressure ratio | I8: =I6/I7 -> 4.011997915
A9: Enthalpy | B9: =HX_H_trh(101350,B5,B6) -> 39967.77551
A10: Wet buld tem | B10: =HX_T_hrh(101350,B9,100) -> 13.74188023 | E10: 1 | F10: Enthaplpy | I10: =R_HsatgasT(I3,I5) -> 1611873.426
F11: Entropy | I11: =R_SsatgasT(I3,I5) -> 6317.478032
E13: 2s | F13: Enthalpy | I13: =R_HgasSP(I3,I11,I6) -> 1810197.919
F14: Isentropi eff | I14: 0.7
E15: 2 | F15: Enthalpy | I15: =I10+(I13-I10)/I14 -> 1895194.131
F16: Temperature | I16: =R_TgasHP(I3,I15,I6) -> 122.0452731
I17: =R_HsatliqT(I3,0) -> 361960.3105

Sheet Sheet4
